bitfinex/quotes_ETHUSD_20250526
["timestamp","ask_amount","ask_price","bid_price","bid_amount"]
[1748266668921,4.56057219,2562.5,2562.1,0.1]
[1748266669510,4.56057219,2562.3,2562.1,0.1]
[1748266669721,3.901,2562.2,2562.1,0.1]
[1748266670785,4.56057219,2562.5,2562.1,0.1]
[1748266670988,8.558,2562.4,2562.1,0.1]
[1748266671418,4.657,2562.3,2562.1,0.1]
[1748266671623,0.8253,2562.8,2562.2,0.8126]
[1748266671828,8.558,2562.7,2562.2,0.8126]
[1748266672926,13.11857219,2562.7,2562.1,0.1]
[1748266673127,4.56057219,2562.3,2562.1,0.1]
[1748266673327,4.6699,2562.2,2562.1,0.1]
[1748266676573,8.536,2562.2,2562.1,0.1]
[1748266678874,5.34737219,2562.5,2562.1,0.1]
[1748266679043,8.536,2562.4,2562.1,0.1]
[1748266682297,4.56057219,2562.3,2562.1,0.1]
[1748266686888,8.66357219,2562.3,2562.1,0.1]
[1748266687178,4.56057219,2562.3,2562.1,0.1]
[1748266692277,3.901,2562.2,2562.1,0.1]
[1748266698495,0.7868,2562.5,2562.1,0.1]
[1748266698800,8.537,2562.4,2562.1,0.874]
[1748266701571,8.537,2562.4,2562.1,0.1]
[1748266701771,8.537,2562.3,2562.1,0.1]
[1748266702507,7.89,2562.6,2562.1,0.1]
[1748266702812,8.537,2562.2,2562.1,0.1]
[1748266705230,13.09757219,2562.2,2562.1,0.1]
[1748266708121,7.89,2562.7,2562.1,0.1]
[1748266708314,8.513,2562.6,2562.2,0.8292]
[1748266709204,3.902,2562.5,2562.2,0.8292]
[1748266709513,4.611,2562.6,2562.2,0.8292]
[1748266709514,3.902,2562.4,2562.2,0.8292]
[1748266709671,4.611,2562.6,2562.2,0.8292]
[1748266709876,3.902,2562.5,2562.2,0.8292]
[1748266710108,1.95219654,2563.0,2562.2,0.8292]
[1748266710312,8.513,2562.9,2562.2,0.8292]
[1748266710514,13.07357219,2562.9,2562.2,0.8292]
[1748266710717,13.07357219,2562.9,2562.3,0.37388754]
[1748266710922,4.56057219,2562.7,2562.3,0.37388754]
[1748266711598,4.56057219,2562.5,2562.1,0.1]
[1748266711799,3.901,2562.4,2562.1,0.1]
[1748266715002,3.901,2562.3,2562.1,0.1]
[1748266716835,8.512,2562.3,2562.1,0.1]
[1748266717336,4.56057219,2562.7,2562.1,0.1]
[1748266717637,4.611,2562.3,2562.1,0.1]
[1748266719940,1.3268,2562.8,2562.1,0.1]
[1748266720144,8.512,2562.7,2562.1,0.1]
[1748266721804,2.339,2562.6,2562.1,0.1]
[1748266722020,8.512,2562.7,2562.1,0.1]
[1748266722303,4.611,2562.7,2562.1,0.1]
[1748266722705,3.901,2562.6,2562.1,0.1]
[1748266724368,0.7768,2562.8,2562.1,0.1]
[1748266724508,4.611,2562.5,2562.2,1.15505377]
[1748266725006,8.512,2562.5,2562.2,1.15505377]
[1748266725508,8.512,2562.5,2562.2,1.70690538]
[1748266727352,5.35947219,2563.0,2562.2,1.70690538]
[1748266727563,5.35947219,2563.0,2562.2,0.7814]
[1748266727716,8.512,2562.9,2562.2,0.7814]
[1748266728710,8.512,2562.8,2562.2,0.7814]
[1748266728916,3.901,2562.7,2562.2,0.7814]
[1748266730392,3.901,2562.6,2562.2,0.7814]
[1748266730542,3.901,2562.6,2562.2,1.66954]
[1748266732382,3.901,2562.6,2562.2,0.7814]
[1748266737587,3.901,2562.6,2562.3,0.37381231]
[1748266737588,4.56057219,2562.4,2562.3,0.37381231]
[1748266738585,9.26067219,2562.6,2562.3,0.37381231]
[1748266738883,9.26067219,2562.6,2562.1,0.1]
[1748266739750,9.26067219,2562.6,2562.2,0.37424602]
[1748266741303,4.7001,2562.6,2562.1,0.1]
[1748266741600,4.56057219,2562.8,2562.1,0.1]
[1748266741893,8.487,2562.7,2562.1,0.1]
[1748266742268,4.56057219,2562.8,2562.1,0.1]
[1748266742474,8.487,2562.7,2562.2,0.8207]
[1748266742907,7.96301482,2562.7,2562.2,0.8207]
[1748266743203,8.487,2562.6,2562.2,0.8207]
[1748266743607,8.487,2562.6,2562.3,0.37423264]
[1748266743804,4.586,2562.5,2562.3,0.37423264]
[1748266744023,8.487,2562.5,2562.3,0.37423264]
[1748266744523,4.56057219,2563.0,2562.3,0.37423264]
[1748266744807,4.56057219,2563.0,2562.2,0.8207]
[1748266744808,4.586,2562.6,2562.4,0.37423264]
[1748266745485,4.586,2562.6,2562.2,0.8207]
[1748266746357,4.586,2562.6,2562.3,0.37422152]
[1748266747009,4.586,2562.6,2562.4,1.17002152]
[1748266747176,4.586,2563.0,2562.5,0.7958]
[1748266747369,10.37419654,2563.2,2562.5,0.83481971]
[1748266747563,8.487,2563.1,2562.6,0.37422152]
[1748266747763,8.487,2563.1,2562.7,0.7958]
[1748266749514,13.04757219,2563.1,2562.7,0.7958]
[1748266753318,9.14657219,2563.1,2562.7,0.7958]
[1748266753619,3.9,2563.0,2562.7,0.7958]
[1748266755079,4.585,2563.0,2562.7,0.7958]
[1748266755280,8.485,2563.0,2562.7,0.7958]
[1748266756629,2.50219654,2563.8,2563.0,0.8097]
[1748266756630,4.585,2563.4,2563.0,0.8097]
[1748266757638,8.485,2563.4,2563.0,0.8097]
[1748266759435,4.585,2563.4,2563.0,0.8097]
[1748266759623,8.485,2563.4,2563.0,0.8097]
[1748266760131,1.95219654,2563.7,2563.0,0.8097]
[1748266760329,6.53719654,2563.7,2563.0,0.8097]
[1748266760692,3.9,2563.6,2563.0,0.8097]
[1748266762545,4.56057219,2563.5,2563.0,0.8097]
[1748266763833,3.9,2563.6,2563.0,0.8097]
[1748266769421,3.9,2563.5,2563.0,0.8097]
[1748266771349,3.9,2563.4,2563.0,0.8097]
[1748266772145,4.585,2563.7,2563.0,0.8097]
[1748266772353,8.459,2563.6,2563.2,0.7695]
[1748266779972,7.89,2563.9,2563.3,4.56057219]
[1748266780276,4.559,2564.0,2563.4,8.03900596]
[1748266780436,4.559,2564.1,2563.6,0.7609]
[1748266780769,8.458,2564.1,2563.7,1.29304722]
[1748266780953,8.458,2564.1,2563.7,0.7609]
[1748266782172,4.56057219,2564.0,2563.2,0.7609]
[1748266782551,4.56057219,2564.0,2563.2,1.22676974]
[1748266783682,4.56057219,2564.0,2563.3,0.37329233]
[1748266783861,8.458,2564.1,2563.3,0.37329233]
[1748266784063,8.458,2564.1,2563.4,0.7609]
[1748266785260,4.56057219,2564.0,2563.4,0.7609]
[1748266785491,0.8004,2563.9,2563.4,0.7609]
[1748266786371,4.56057219,2564.0,2563.4,0.7609]
[1748266788693,9.2584,2564.1,2563.4,0.7609]
[1748266789688,0.8004,2564.1,2563.4,0.7609]
[1748266789997,8.457,2564.0,2563.4,0.7609]
[1748266793998,4.56057219,2563.8,2563.4,0.7609]
[1748266795015,8.0,2563.9,2563.4,0.7609]
[1748266797308,13.01757219,2564.0,2563.4,0.7609]
[1748266799531,0.8004,2564.1,2563.5,0.7886]
[1748266799532,4.534,2564.1,2563.5,0.7886]
[1748266799819,4.534,2564.1,2563.7,0.7886]
[1748266799820,8.433,2564.1,2563.7,0.7886]
[1748266800719,4.56057219,2564.0,2563.3,0.8194]
[1748266801784,4.56057219,2564.0,2563.4,0.37366564]
[1748266802807,3.899,2563.9,2563.4,0.37366564]
[1748266803007,3.899,2563.9,2563.5,0.37366564]
[1748266803816,3.899,2563.9,2563.6,0.7853]
[1748266804998,4.534,2563.8,2563.6,0.7853]
[1748266805398,9.09457219,2563.8,2563.2,0.7742]
[1748266805596,9.09457219,2563.8,2563.1,0.46586974]
[1748266805597,4.56057219,2563.4,2563.1,0.46586974]
[1748266805799,8.45957219,2563.4,2563.1,0.46586974]
[1748266806401,3.899,2563.4,2563.1,0.46586974]
[1748266806588,8.433,2563.4,2563.2,0.7731]
[1748266807925,8.433,2563.4,2563.0,0.8313]
[1748266811989,4.534,2563.4,2563.0,0.8313]
[1748266812190,3.899,2563.3,2563.0,0.8313]
[1748266814402,4.534,2563.4,2563.0,0.8313]
[1748266814604,3.899,2563.3,2563.0,0.8313]
[1748266818715,3.899,2563.3,2562.7,0.784]
[1748266819433,3.899,2563.3,2562.8,0.784]
[1748266819734,3.899,2563.3,2562.9,0.53445722]
[1748266820050,3.899,2563.3,2562.8,0.784]
[1748266821453,4.6692,2563.3,2562.8,0.784]
[1748266822003,4.56057219,2563.0,2562.5,0.7977]
[1748266822540,0.8166,2562.9,2562.4,0.46586974]
[1748266822840,3.899,2562.8,2562.4,0.46586974]
[1748266823138,3.899,2562.8,2562.5,0.37338454]
[1748266824100,3.899,2562.8,2562.3,0.7977]
[1748266824325,3.899,2562.7,2562.3,5.35827219]
[1748266824527,3.899,2562.7,2562.4,0.53972959]
[1748266824743,3.899,2562.7,2562.4,0.912935]
[1748266826267,3.899,2562.7,2562.4,0.53972959]
[1748266827530,8.435,2562.9,2562.4,0.53972959]
[1748266828672,8.435,2562.9,2562.4,8.53972959]
[1748266828859,4.535,2563.1,2562.8,0.8279]
[1748266829165,8.424,2563.7,2563.0,0.8279]
[1748266829469,4.535,2563.5,2563.0,0.8279]
[1748266830757,8.435,2563.5,2563.0,0.8279]
[1748266830943,8.435,2563.5,2563.1,0.53884722]
[1748266831492,4.535,2563.5,2563.1,0.53884722]
[1748266831785,8.435,2563.5,2563.1,0.53884722]
[1748266832303,8.424,2563.7,2563.2,0.8185]
[1748266832445,1.95219654,2563.8,2563.5,0.8185]
[1748266832649,1.95219654,2563.8,2563.6,0.53790722]
[1748266832959,1.95219654,2563.8,2563.7,0.8185]
[1748266833162,8.412,2564.0,2563.7,0.8185]
[1748266834117,1.95219654,2564.4,2563.8,4.56057219]
[1748266834404,4.511,2564.3,2564.1,0.7932]
[1748266834606,4.511,2564.3,2564.2,0.53537722]
[1748266835629,4.511,2564.3,2564.1,0.7932]
[1748266836394,1.95219654,2564.4,2564.1,5.35377219]
[1748266837063,1.95219654,2564.4,2564.1,0.7932]
[1748266838306,5.85119654,2564.4,2564.1,0.7932]
[1748266838676,4.6688,2564.4,2563.9,0.7527]
[1748266839381,4.6688,2564.4,2563.9,1.62797]
[1748266840016,4.6688,2564.4,2563.5,0.8225]
[1748266840518,4.6688,2564.4,2563.6,4.56057219]
[1748266840813,4.6688,2564.4,2563.7,8.0]
[1748266841162,4.6688,2564.4,2563.5,0.8225]
[1748266841397,4.6688,2564.4,2563.5,8.8225]
[1748266841591,4.6688,2564.4,2563.6,1.37700998]
[1748266842994,4.6688,2564.4,2563.7,8.0]
[1748266843226,0.7846,2564.6,2563.8,5.38447219]
[1748266843406,3.898,2564.3,2563.8,5.38447219]
[1748266844826,3.898,2564.3,2563.8,0.8239]
[1748266845032,3.898,2564.3,2563.9,0.88239]
[1748266846030,0.7846,2564.6,2563.9,0.88239]
[1748266846325,3.898,2564.3,2563.9,0.88239]
[1748266847928,3.898,2564.4,2564.0,4.56057219]
[1748266848129,4.51,2564.6,2564.1,0.7776]
[1748266848434,4.51,2564.6,2564.2,0.53381722]
[1748266853303,0.8111,2564.5,2563.8,0.824]
[1748266854450,0.8111,2564.5,2563.9,8.0]
[1748266856454,0.7809,2564.8,2563.9,8.0]
[1748266856626,4.509,2564.6,2564.0,5.34867219]
[1748266856950,4.509,2564.6,2564.3,8.0]
[1748266857154,4.509,2564.6,2564.4,1.33927722]
[1748266858259,0.1,2564.9,2564.5,0.7688]
[1748266858666,3.998,2564.9,2564.5,0.7688]
[1748266861383,4.56057219,2564.8,2564.2,0.7809]
[1748266861587,0.8064,2564.7,2564.2,0.7809]
[1748266862291,3.898,2564.8,2564.2,0.7809]
[1748266862588,3.898,2564.8,2564.3,0.87809]
[1748266862985,3.898,2564.8,2564.3,1.25129619]
[1748266864480,3.898,2564.8,2564.4,0.37320619]
[1748266865261,3.898,2564.8,2564.5,0.37320619]
[1748266866279,3.898,2564.8,2564.3,0.37320619]
[1748266868007,3.898,2564.8,2564.4,0.37320619]
[1748266868816,8.45857219,2564.8,2564.4,0.37320619]
[1748266869211,8.45857219,2564.8,2564.2,0.7809]
[1748266872678,0.9326,2564.9,2564.2,0.7809]
[1748266872873,3.897,2564.8,2564.4,0.7732]
[1748266873875,3.897,2564.8,2564.5,0.37331845]
[1748266874301,3.897,2564.7,2564.5,0.37331845]
[1748266875226,8.384,2564.8,2564.5,0.37331845]
[1748266875614,4.487,2564.8,2564.5,0.37331845]
[1748266875821,8.384,2564.8,2564.4,0.7732]
[1748266876182,4.487,2564.8,2564.4,0.7732]
[1748266877423,4.487,2564.8,2564.5,0.87732]
[1748266878597,4.487,2564.8,2564.6,0.37349853]
[1748266880182,4.487,2564.8,2564.4,0.7732]
[1748266881097,4.487,2564.8,2564.5,0.3735322]
[1748266882511,4.487,2564.8,2564.4,0.7732]
[1748266885024,3.897,2564.7,2564.4,0.7732]
[1748266885331,3.897,2564.7,2564.5,0.37365612]
[1748266886530,3.897,2564.7,2564.4,0.7732]
[1748266889333,3.897,2564.7,2564.5,0.37380087]
[1748266890043,4.56057219,2564.6,2564.5,0.37380087]
[1748266890196,3.897,2564.7,2564.5,0.37380087]
[1748266890529,3.897,2564.7,2564.1,8.0]
[1748266891595,3.897,2564.7,2564.2,0.37379262]
[1748266893225,3.897,2564.7,2564.3,0.37379262]
[1748266894233,3.897,2564.7,2564.4,0.37379262]
[1748266895437,3.897,2564.7,2564.1,8.0]
[1748266895639,3.897,2564.7,2564.1,9.12840678]
[1748266896152,3.897,2564.6,2564.1,9.12840678]
[1748266897006,3.897,2564.6,2564.2,0.37377721]
[1748266898138,3.897,2564.6,2564.3,0.37377721]
[1748266899218,3.897,2564.6,2564.4,0.37377721]
[1748266900870,3.897,2564.5,2564.4,0.37377721]
[1748266903560,3.897,2564.6,2564.4,1.15967721]
[1748266904174,0.1,2564.9,2564.4,1.15967721]
[1748266904381,4.566,2564.9,2564.4,9.15967721]
[1748266904680,8.463,2564.9,2564.5,1.37202494]
[1748266904828,8.463,2564.9,2564.5,0.37377721]
[1748266905152,4.56057219,2564.8,2564.5,0.37377721]
[1748266905469,0.7967,2564.7,2564.5,0.37377721]
[1748266905844,0.7967,2564.7,2564.1,10.36977652]
[1748266907477,0.7967,2564.7,2564.2,0.37377784]
[1748266907640,0.7967,2564.7,2564.2,1.64771308]
[1748266908376,4.465,2564.6,2564.2,1.64771308]
[1748266908575,3.897,2564.5,2564.3,0.37377784]
[1748266909642,8.45757219,2564.5,2564.4,0.37377784]
[1748266909842,3.897,2564.5,2564.4,0.37377784]
[1748266910977,3.897,2564.5,2564.1,8.0]
[1748266911143,3.897,2564.4,2564.2,0.99957981]
[1748266911338,3.897,2564.3,2564.2,0.99957981]
[1748266912079,3.898,2564.3,2564.2,1.81757981]
[1748266912781,3.898,2564.3,2564.2,2.19140419]
[1748266915383,3.898,2564.3,2564.2,1.37340419]
[1748266924559,3.898,2564.3,2564.2,0.37382438]
[1748266925609,9.26397219,2564.3,2564.2,0.37382438]
[1748266925961,9.81397219,2564.3,2564.2,0.14018414]
[1748266926204,17.81397219,2564.3,2564.2,0.14018414]
[1748266926379,18.19512167,2564.3,2564.2,0.14018414]
[1748266926916,18.19512167,2564.3,2564.0,2.46166782]
[1748266927112,5.89367219,2564.1,2564.0,1.99579808]
[1748266928290,14.23667219,2564.1,2564.0,1.99579808]
[1748266928713,5.2281,2564.1,2564.0,1.99579808]
[1748266928882,9.1261,2564.1,2564.0,1.99579808]
[1748266929727,0.7831,2564.1,2564.0,1.99579808]
[1748266929999,9.1261,2564.1,2564.0,1.99579808]
[1748266931017,17.1261,2564.1,2564.0,1.99579808]
[1748266931684,9.1261,2564.1,2564.0,1.99579808]
[1748266936399,0.7831,2564.1,2564.0,1.99579808]
[1748266936624,4.446,2564.3,2564.0,2.19537789]
[1748266936976,8.344,2564.3,2564.0,2.19537789]
[1748266938505,8.344,2564.3,2564.0,1.99579808]
[1748266939615,0.7622,2564.7,2564.1,0.8123]
[1748266939783,4.446,2564.5,2564.1,0.8123]
[1748266940809,4.446,2564.5,2564.1,0.8123]
[1748266941510,3.898,2564.4,2564.1,0.8123]
[1748266941709,3.898,2564.3,2564.1,0.8123]
[1748266941909,3.898,2564.3,2564.2,0.28080981]
[1748266942704,4.446,2564.5,2564.2,0.28080981]
[1748266942705,3.898,2564.4,2564.2,0.28080981]
[1748266942904,4.446,2564.5,2564.2,0.28080981]
[1748266943106,4.446,2564.7,2564.3,5.36357219]
[1748266943333,3.898,2564.6,2564.4,1.3644382]
[1748266943665,0.1,2564.9,2564.4,1.73704799]
[1748266944011,3.898,2564.7,2564.4,1.73704799]
[1748266944312,4.446,2564.8,2564.4,1.73704799]
[1748266944485,8.344,2564.8,2564.4,1.73704799]
[1748266944681,8.344,2564.8,2564.5,0.71006202]
[1748266944887,8.344,2564.8,2564.4,1.73704799]
[1748266945385,8.344,2564.8,2564.4,1.3644382]
[1748266946810,4.56057219,2564.6,2564.1,8.0]
[1748266947005,0.7784,2564.5,2564.0,2.46166782]
[1748266947309,3.898,2564.4,2564.0,10.46166782]
[1748266947509,3.898,2564.4,2564.0,2.46166782]
[1748266948024,8.45857219,2564.4,2564.0,2.46166782]
[1748266948229,8.45857219,2564.4,2564.0,1.99579808]
[1748266953640,4.56057219,2564.2,2564.0,1.99579808]
[1748266953830,4.425,2564.1,2564.0,1.99579808]
[1748266958047,8.323,2564.1,2564.0,1.99579808]
[1748266959755,0.8289,2564.3,2564.0,1.99579808]
[1748266959921,7.89,2564.7,2564.0,1.99579808]
[1748266959922,4.426,2564.1,2564.0,1.99579808]
[1748266961733,8.6564,2564.7,2564.0,10.27740789]
[1748266961936,4.426,2564.5,2564.1,0.85509835]
[1748266962245,4.426,2564.5,2564.1,0.8161]
[1748266962415,4.426,2564.5,2564.2,1.10935079]
[1748266965752,4.426,2564.5,2564.1,0.8161]
[1748266971157,3.898,2564.4,2564.1,0.8161]
[1748266981477,3.898,2564.4,2564.0,9.99579808]
[1748266981683,4.56057219,2564.2,2564.0,1.99579808]
[1748266981972,3.898,2564.1,2564.0,1.99579808]
[1748266983286,4.7097,2564.1,2564.0,1.99579808]
[1748266984150,5.2597,2564.1,2564.0,1.99579808]
[1748266987055,0.8117,2564.1,2564.0,1.99579808]
[1748266987259,3.898,2564.1,2564.0,1.99579808]
[1748266989388,4.6917,2564.1,2564.0,1.99579808]
[1748266989584,13.2417,2564.1,2564.0,1.99579808]
[1748266994063,17.80227219,2564.1,2564.0,1.99579808]
[1748266995724,13.90427219,2564.1,2564.0,1.99579808]
[1748266995878,5.2427,2564.1,2564.0,1.99579808]
[1748266996197,8.307,2564.1,2564.0,1.99579808]
[1748267000889,9.0872,2564.1,2564.0,1.99579808]
[1748267001397,9.6372,2564.1,2564.0,1.99579808]
[1748267002312,14.19777219,2564.1,2564.0,1.99579808]
[1748267002689,14.17527219,2564.1,2564.0,1.99579808]
[1748267003009,18.73584438,2564.1,2564.0,1.99579808]
[1748267003214,14.17527219,2564.1,2564.0,1.99579808]
[1748267004689,22.17527219,2564.1,2564.0,1.99579808]
[1748267014421,18.25827219,2564.1,2564.0,1.99579808]
[1748267014622,22.15727219,2564.1,2564.0,1.99579808]
[1748267016918,13.39957219,2564.1,2564.0,1.99579808]
[1748267017107,8.95057219,2564.1,2564.0,1.99579808]
[1748267017307,12.84957219,2564.1,2564.0,1.99579808]
[1748267018204,4.56057219,2564.1,2564.0,1.99579808]
[1748267018406,12.84957219,2564.1,2564.0,1.99579808]
[1748267022265,13.39957219,2564.1,2564.0,1.99579808]
[1748267022470,14.16387219,2564.1,2564.0,1.99579808]
[1748267029662,9.50057219,2564.1,2564.0,1.99579808]
[1748267029964,12.84957219,2564.1,2564.0,1.99579808]
[1748267032481,4.56057219,2564.1,2564.0,1.99579808]
[1748267032763,12.84957219,2564.1,2564.0,1.99579808]
[1748267033435,8.95057219,2564.1,2564.0,1.99579808]
[1748267033767,12.84957219,2564.1,2564.0,1.99579808]
[1748267033923,2.33817814,2564.3,2564.0,1.99579808]
[1748267034129,4.39,2564.2,2564.0,1.99579808]
[1748267034323,3.899,2564.1,2564.0,1.99579808]
[1748267034571,4.39,2564.2,2564.0,1.99579808]
[1748267034743,4.39,2564.2,2564.1,0.7578]
[1748267034929,8.289,2564.2,2564.1,0.7578]
[1748267037772,4.39,2564.2,2564.1,0.7578]
[1748267038075,8.289,2564.2,2564.1,0.7578]
[1748267038947,9.84219654,2564.4,2564.1,1.03315981]
[1748267039156,1.95219654,2564.4,2564.1,1.03315981]
[1748267039352,5.85119654,2564.4,2564.1,1.03315981]
[1748267039677,3.899,2564.3,2564.2,0.7922]
[1748267042178,4.39,2564.6,2564.2,0.7922]
[1748267042383,10.37519654,2564.7,2564.2,0.30633579]
[1748267042546,8.289,2564.5,2564.3,0.7816]
[1748267049786,4.39,2564.5,2564.3,5.34217219]
[1748267049944,4.372,2565.1,2564.4,8.0]
[1748267050149,4.372,2565.1,2564.6,0.7521]
[1748267050150,3.998,2564.9,2564.6,0.7521]
[1748267052374,0.1,2564.9,2564.6,0.7521]
[1748267052572,3.998,2564.9,2564.6,0.7521]
[1748267054982,4.56057219,2564.7,2564.3,0.806]
[1748267056107,4.56057219,2564.5,2564.1,0.7859]
[1748267056307,4.56057219,2564.3,2564.0,1.99579808]
[1748267056710,8.268,2564.4,2564.0,1.99579808]
[1748267059825,3.898,2564.3,2564.1,0.7776]
[1748267060015,3.898,2564.3,2564.2,0.27733981]
[1748267061208,3.898,2564.3,2564.1,0.7776]
[1748267063505,4.371,2564.4,2564.1,0.7776]
[1748267063832,0.1,2564.9,2564.1,0.7776]
[1748267063833,3.898,2564.8,2564.2,0.7974]
[1748267064931,3.898,2564.8,2564.3,0.37290082]
[1748267065228,4.56057219,2564.7,2564.3,0.37290082]
[1748267065621,4.56057219,2564.7,2564.1,8.7911]
[1748267066937,4.56057219,2564.7,2564.1,0.7911]
[1748267076160,4.355,2564.6,2564.1,0.7911]
[1748267076748,6.695,2564.6,2564.1,0.7911]
[1748267077063,4.355,2564.6,2564.1,0.7911]
[1748267077365,8.0,2564.5,2564.1,0.7911]
[1748267078836,8.0,2564.3,2564.0,1.99579808]
[1748267079033,4.56057219,2564.4,2564.0,1.99579808]
[1748267079034,8.45857219,2564.2,2564.0,1.99579808]
[1748267082633,3.898,2564.2,2564.0,1.99579808]
[1748267083477,0.55,2564.3,2564.0,1.99579808]
[1748267083628,1.95219654,2564.8,2564.1,0.7848]
[1748267083629,4.356,2564.2,2564.1,0.7848]
[1748267085046,1.95219654,2564.8,2564.1,0.7848]
[1748267085047,3.898,2564.5,2564.1,0.7848]
[1748267086279,4.356,2564.6,2564.1,0.7848]
[1748267086280,3.898,2564.4,2564.1,0.7848]
[1748267086430,3.898,2564.4,2564.3,0.7783]
[1748267088033,4.356,2564.6,2564.3,0.7783]
[1748267088034,3.898,2564.5,2564.3,0.7783]
[1748267090663,4.356,2564.6,2564.3,4.56057219]
[1748267090976,4.356,2564.6,2564.4,0.7907]
[1748267091183,4.356,2564.6,2564.5,0.53512722]
[1748267091364,4.356,2564.6,2564.4,0.7907]
[1748267098178,4.356,2564.6,2564.4,8.0]
[1748267098487,4.356,2564.6,2564.5,0.7663]
[1748267098785,4.356,2564.6,2564.5,13.32687219]
[1748267098958,4.356,2564.6,2564.5,13.69977813]
[1748267099490,4.356,2564.6,2564.5,15.06975594]
[1748267100074,0.1,2564.9,2564.6,0.8331]
[1748267100270,0.1,2564.9,2564.8,0.8331]
[1748267100647,0.1,2564.9,2564.8,8.87208245]
[1748267100945,0.1,2564.9,2564.8,10.17636546]
[1748267102586,0.1,2564.9,2564.8,10.5487517]
[1748267102995,0.1,2564.9,2564.8,1.7156517]
[1748267103197,0.1,2564.9,2564.8,0.37238624]
[1748267103801,3.997,2564.9,2564.8,0.37238624]
[1748267104362,3.997,2564.9,2564.6,0.7646]
[1748267105075,3.997,2564.9,2564.4,8.0]
[1748267105076,3.997,2564.9,2564.4,0.7547]
[1748267110809,8.336,2564.9,2564.4,0.7547]
[1748267111320,0.7805,2564.8,2564.2,0.7793]
[1748267111531,5.34107219,2564.8,2564.1,8.0]
[1748267111814,8.336,2564.9,2564.0,1.99579808]
[1748267111815,4.56057219,2564.4,2564.0,1.99579808]
[1748267111977,3.897,2564.3,2564.0,1.99579808]
[1748267112176,4.339,2564.2,2564.0,1.99579808]
[1748267115010,3.897,2564.1,2564.0,1.99579808]
[1748267115187,3.897,2564.1,2564.0,2.19537789]
[1748267115915,4.34,2564.4,2564.1,0.7985]
[1748267116119,8.237,2564.4,2564.1,0.7985]
[1748267116622,0.1,2564.9,2564.2,4.59956759]
[1748267116914,4.34,2564.6,2564.3,8.53980676]
[1748267117114,0.1,2564.9,2564.4,0.7874]
[1748267117317,3.897,2564.6,2564.4,0.7874]
[1748267117894,3.897,2564.7,2564.4,0.7874]
[1748267118096,3.897,2564.7,2564.5,0.93272068]
[1748267119080,3.897,2564.7,2564.3,8.53980676]
[1748267120111,3.897,2564.7,2564.3,0.53980676]
[1748267121427,3.897,2564.6,2564.3,0.53980676]
[1748267122424,3.897,2564.6,2564.4,0.37279302]
[1748267123135,4.34,2564.8,2564.4,0.37279302]
[1748267123426,8.237,2564.8,2564.4,1.80120022]
[1748267124192,8.237,2564.8,2564.4,1.4284072]
[1748267130245,8.237,2564.8,2564.2,0.8109]
[1748267130246,12.79757219,2564.8,2564.2,0.8109]
[1748267130544,4.56057219,2564.6,2564.0,0.46586974]
[1748267130749,3.897,2564.5,2564.0,0.46586974]
[1748267130952,4.56057219,2564.2,2563.6,0.46586974]
[1748267131106,8.237,2564.1,2563.6,0.46586974]
[1748267131309,0.7652,2564.0,2563.6,0.46586974]
[1748267131573,5.32577219,2564.0,2563.6,0.46586974]
[1748267131793,0.7652,2564.0,2563.6,0.46586974]
[1748267131908,0.7652,2564.0,2563.4,0.37293843]
[1748267132108,0.7652,2564.0,2563.4,1.29072227]
[1748267132339,8.237,2563.9,2563.4,1.29072227]
[1748267132543,8.237,2563.9,2563.4,9.29072227]
[1748267133167,8.237,2563.9,2563.5,0.37293843]
[1748267134565,8.237,2563.9,2563.1,1.92415477]
[1748267134738,8.237,2563.9,2563.1,9.92415477]
[1748267135321,0.8175,2563.8,2563.1,9.92415477]
[1748267135769,0.8175,2563.8,2563.1,8.0]
[1748267139372,3.898,2563.7,2563.1,8.0]
[1748267139776,3.898,2563.7,2563.2,0.37220113]
[1748267139976,3.898,2563.7,2563.2,1.29045124]
[1748267140840,3.898,2563.7,2563.2,0.91825011]
[1748267141284,0.8175,2563.8,2563.2,0.91825011]
[1748267141578,0.8175,2563.8,2563.4,0.7887]
[1748267141579,3.898,2563.8,2563.4,0.7887]
[1748267141874,4.328,2564.0,2563.4,0.7887]
[1748267142183,3.898,2563.8,2563.4,0.7887]
[1748267151270,1.90235758,2563.8,2563.4,0.7887]
[1748267153954,0.7586,2563.7,2563.2,9.69855011]
[1748267154322,0.7586,2563.7,2563.2,8.91825011]
[1748267154657,0.7586,2563.7,2563.0,0.46586974]
[1748267155317,0.7586,2563.7,2563.3,0.37255062]
[1748267156183,0.8034,2563.5,2563.3,0.37255062]
[1748267156513,3.898,2563.4,2563.3,0.37255062]
[1748267156676,3.898,2563.4,2562.6,8.7616]
[1748267156891,4.328,2563.3,2562.7,1.37914726]
[1748267157897,4.328,2563.3,2562.8,0.37284431]
[1748267159284,4.328,2563.3,2562.9,0.37284431]
[1748267160430,4.328,2563.3,2563.0,0.37284431]
[1748267161937,0.8083,2563.2,2562.8,0.37284431]
[1748267162111,0.8083,2563.2,2562.8,9.47079044]
[1748267163130,0.8083,2563.2,2562.9,0.37284431]
[1748267166099,4.316,2563.5,2563.1,5.37020287]
[1748267166449,8.215,2563.7,2563.1,5.37020287]
[1748267166603,8.215,2563.7,2563.2,8.53702029]
[1748267167137,0.7572,2563.9,2563.2,8.53702029]
[1748267167138,4.316,2563.9,2563.4,8.0]